[Event "ARM-ch Rapid 2019"]
[Site "Yerevan"]
[Date "2019.01.22"]
[Round "2.10"]
[White "Alaverdyan, Gevorg"]
[Black "Vardanian, Haik V."]
[Result "0-1"]
[WhiteElo "2261"]
[BlackElo "2234"]
[PlyCount "138"]
[EventDate "2019.01.22"]
[EventType "tourn"]
[EventCountry "ARM"]
[TimeControl "40/5400+30:1800+30"]
[WhiteClock "0:01:10"]
[BlackClock "0:00:45"]

1. e4 {[%emt 1:15:13]} g6 {[%emt 1:15:13]} 2. d4 {[%emt 0:00:32]} Bg7 {[%emt 0:00:23]} 3. Nf3 {[%emt 0:00:40]} d6 {[%emt 0:00:23]} 4. Nc3 {[%emt 0:00:24]} Bg4 {[%emt 0:00:28]} 5. Bc4 {[%emt 0:00:28]} Bxf3 {[%emt 0:01:20]} 6. Qxf3 {[%emt 0:00:24]} e6 {[%emt 0:00:25]} 7. Be3 {[%emt 0:00:36]} c6 {[%emt 0:00:55]} 8. O-O-O {[%emt 0:01:02]} Nd7 {[%emt 0:00:58]} 9. h4 {[%emt 0:00:32]} h5 {[%emt 0:00:28]} 10. Qh3 {[%emt 0:00:58]} d5 {[%emt 0:00:52]} 11. Bd3 {[%emt 0:01:38]} Qb6 {[%emt 0:02:16]} 12. e5 {[%emt 0:03:13]} Ne7 {[%emt 0:02:21]} 13. g4 {[%emt 0:00:39]} O-O-O {[%emt 0:00:44]} 14. Bg5 {[%emt 0:01:41]} Bh6 {[%emt 0:01:31]} 15. Bxh6 {[%emt 0:02:56]} Rxh6 {[%emt 0:00:22]} 16. Qe3 {[%emt 0:00:27]} Rdh8 {[%emt 0:01:10]} 17. g5 {[%emt 0:00:22]} R6h7 {[%emt 0:00:22]} 18. Rh3 {[%emt 0:00:27]} Kb8 {[%emt 0:00:45]} 19. a3 {[%emt 0:01:00]} Rc8 {[%emt 0:00:36]} 20. Rf3 {[%emt 0:03:39]} Qa5 {[%emt 0:02:29]} 21. Rf4 {[%emt 0:00:33]} Nf8 {[%emt 0:00:37]} 22. Kb1 {[%emt 0:00:31]} Nf5 {[%emt 0:00:41]} 23. Qf3 {[%emt 0:00:59]} Ka8 {[%emt 0:00:49]} 24. Ka2 {[%emt 0:00:35]} Rh8 {[%emt 0:00:44]} 25. b4 {[%emt 0:00:47]} Qb6 {[%emt 0:00:40]} 26. Na4 {[%emt 0:00:27]} Qd8 {[%emt 0:00:59]} 27. c4 {[%emt 0:00:59]} dxc4 {[%emt 0:00:40]} 28. Bxc4 {[%emt 0:00:21]} Nd7 {[%emt 0:00:42]} 29. Nc5 {[%emt 0:00:50]} Nb6 {[%emt 0:00:53]} 30. Bb3 {[%emt 0:01:08]} Qe7 {[%emt 0:00:37]} 31. Re4 {[%emt 0:01:06]} Rhd8 {[%emt 0:00:40]} 32. Kb2 {[%emt 0:00:28]} Nd5 {[%emt 0:00:39]} 33. Qh1 {[%emt 0:00:27]} Rc7 {[%emt 0:01:31]} 34. Qf1 {[%emt 0:00:25]} Nb6 {[%emt 0:00:50]} 35. Qd3 {[%emt 0:00:27]} Rcc8 {[%emt 0:00:39]} 36. Qc2 {[%emt 0:00:23]} Nd5 {[%emt 0:00:29]} 37. Qc4 {[%emt 0:00:25]} Qc7 {[%emt 0:00:27]} 38. Rc1 {[%emt 0:00:26]} Nb6 {[%emt 0:00:36]} 39. Qd3 {[%emt 0:00:21]} Qe7 {[%emt 0:00:46]} 40. Rc2 {[%emt 0:00:26]} Nd5 {[%emt 0:00:32]} 41. Kc1 {[%emt 0:30:21]} Nc7 {[%emt 0:30:23]} 42. Bc4 {[%emt 0:00:25]} Nb5 {[%emt 0:00:46]} 43. Bxb5 {[%emt 0:01:24]} cxb5 {[%emt 0:00:22]} 44. Kb2 {[%emt 0:00:31]} b6 {[%emt 0:00:38]} 45. Nb3 {[%emt 0:00:30]} Rxc2+ {[%emt 0:00:24]} 46. Qxc2 {[%emt 0:00:21]} Kb7 {[%emt 0:00:29]} 47. Re1 {[%emt 0:00:29]} Qd7 {[%emt 0:00:42]} 48. Qd2 {[%emt 0:00:52]} Nxh4 {[%emt 0:00:43]} 49. Rc1 {[%emt 0:00:29]} Nf5 {[%emt 0:00:28]} 50. Qd3 {[%emt 0:00:25]} Rc8 {[%emt 0:00:48]} 51. Rxc8 {[%emt 0:00:29]} Kxc8 {[%emt 0:00:22]} 52. Qc3+ {[%emt 0:00:37]} Kb7 {[%emt 0:00:24]} 53. Qd3 {[%emt 0:00:23]} h4 {[%emt 0:00:29]} 54. Qc3 {[%emt 0:00:32]} Qc6 {[%emt 0:00:31]} 55. Qd3 {[%emt 0:00:21]} Qd5 {[%emt 0:00:40]} 56. Qc3 {[%emt 0:00:24]} Qg2 {[%emt 0:00:25]} 57. Qd3 {[%emt 0:00:35]} Qxf2+ {[%emt 0:00:23]} 58. Kb1 {[%emt 0:00:32]} Qg2 {[%emt 0:00:37]} 59. Qxb5 {[%emt 0:00:27]} Qd5 {[%emt 0:00:35]} 60. Nc5+ {[%emt 0:00:21]} Kc7 {[%emt 0:00:36]} 61. Qa6 {[%emt 0:00:54]} bxc5 {[%emt 0:00:24]} 62. Qxa7+ {[%emt 0:00:21]} Kc8 {[%emt 0:00:28]} 63. dxc5 {[%emt 0:00:27]} Nd4 {[%emt 0:00:39]} 64. Qa6+ {[%emt 0:00:30]} Qb7 {[%emt 0:00:26]} 65. Qd3 {[%emt 0:00:29]} Qh1+ {[%emt 0:00:22]} 66. Kb2 {[%emt 0:00:21]} Qg2+ {[%emt 0:00:24]} 67. Kb1 {[%emt 0:00:21]} Qg1+ {[%emt 0:00:21]} 68. Kb2 {[%emt 0:00:23]} Qf2+ {[%emt 0:00:22]} 69. Kc3 {[%emt 0:00:36]} Qf3 {[%emt 0:00:37]} 0-1

[Event "ARM-ch Rapid 2019"]
[Site "Yerevan"]
[Date "2019.01.22"]
[Round "3.1"]
[White "Hayrapetyan, Artavazd R."]
[Black "Hovhannisyan, Robert"]
[Result "0-1"]
[WhiteElo "2374"]
[BlackElo "2637"]
[Annotator "RC"]
[PlyCount "76"]
[EventDate "2019.01.22"]
[EventType "tourn"]
[EventCountry "ARM"]
[TimeControl "40/5400+30:1800+30"]
[WhiteClock "0:03:11"]
[BlackClock "0:00:40"]

1. d4 {[%emt 1:15:13]} Nf6 {[%emt 1:15:11]} 2. c4 {[%emt 0:01:00]} e6 {[%emt 0:00:21]} 3. Nf3 {[%emt 0:00:41]} Bb4+ {[%emt 0:00:24]} 4. Nbd2 {[%emt 0:00:42]} O-O {[%emt 0:00:23]} 5. g3 {[%emt 0:00:48]} d5 {[%emt 0:00:43]} 6. Qb3 {[%emt 0:00:47]} a5 {[%emt 0:00:59]} 7. Bg2 {[%emt 0:00:41]} dxc4 {[%emt 0:00:28]} 8. Qxc4 {[%emt 0:00:23]} b6 {[%emt 0:00:23]} 9. Qc2 {[%emt 0:01:17]} Bb7 {[%emt 0:01:03]} 10. O-O {[%emt 0:00:24]} c5 {[%emt 0:01:29]} 11. dxc5 {[%emt 0:01:29]} Bxc5 {[%emt 0:00:29]} 12. Nb3 {[%emt 0:00:22]} Nbd7 {[%emt 0:00:49]} 13. Nxc5 {[%emt 0:00:41]} Nxc5 {[%emt 0:00:22]} 14. Rd1 {[%emt 0:00:21]} Qe7 {[%emt 0:00:32]} 15. Bf4 {[%emt 0:01:09]} Be4 {[%emt 0:00:37]} 16. Qc4 {[%emt 0:00:35]} Nd5 {[%emt 0:01:13]} 17. Be5 {[%emt 0:01:31]} Rac8 {[%emt 0:00:57]} 18. Rac1 {[%emt 0:01:24]} Qb7 {[%emt 0:01:13]} 19. Qd4 {[%emt 0:00:28]} Ne7 {[%emt 0:01:05]} 20. Qe3 {[%emt 0:04:06]} f6 {[%emt 0:00:56]} 21. Bd6 {[%emt 0:00:45]} Nf5 {[%emt 0:00:22]} 22. Qa3 {[%emt 0:00:21]} Nxd6 {[%emt 0:00:47]} 23. Rxd6 {[%emt 0:00:21]} Rfd8 {[%emt 0:01:18]} 24. Rxd8+ {[%emt 0:00:31]} Rxd8 {[%emt 0:00:21]} 25. b4 {[%emt 0:00:21]} axb4 {[%emt 0:00:22]} 26. Qxb4 {[%emt 0:00:21]} Qa6 {[%emt 0:00:50]} 27. Qb2 {[%emt 0:01:20]} Na4 {[%emt 0:02:18]} 28. Qb4 {[%emt 0:00:31]} Nc5 {[%emt 0:01:24]} 29. Bf1 {[%emt 0:01:50]} Ba8 {[%emt 0:02:03]} 30. a4 {[%emt 0:01:16]} Rc8 {[%emt 0:01:38]} 31. Bh3 {[%emt 0:00:32]} Qxe2 {[%emt 0:00:47]} 32. Nd4 {[%emt 0:00:25]} Qe4 {[%emt 0:00:30]} 33. Bxe6+ {[%emt 0:00:52]} Kh8 {[%emt 0:00:21]} 34. f3 {[%emt 0:00:21]} Qe3+ {[%emt 0:00:31]} 35. Kg2 {[%emt 0:00:20]} Rd8 {[%emt 0:01:12]} 36. Qxb6 {[%emt 0:02:47]} Nxe6 {[%emt 0:00:38]} 37. Qxe6 {[%emt 0:00:53]} Bxf3+ {[%emt 0:00:27]} 38. Kh3 {[%emt 0:00:31]} Qh6# {[%emt 0:00:23]} 0-1

[Event "ARM-ch Rapid 2019"]
[Site "Yerevan"]
[Date "2019.01.22"]
[Round "3.2"]
[White "Chibukhchian, Artur"]
[Black "Harutyunyan, Gor"]
[Result "1-0"]
[WhiteElo "2384"]
[BlackElo "1690"]
[PlyCount "61"]
[EventDate "2019.01.22"]
[EventType "tourn"]
[EventCountry "ARM"]
[TimeControl "40/5400+30:1800+30"]
[WhiteClock "0:00:24"]
[BlackClock "0:00:26"]

1. d4 {[%emt 1:15:12]} Nf6 {[%emt 1:15:11]} 2. c4 {[%emt 0:00:22]} e5 {[%emt 0:00:22]} 3. dxe5 {[%emt 0:00:23]} Ng4 {[%emt 0:00:21]} 4. Bf4 {[%emt 0:00:22]} Nc6 {[%emt 0:00:22]} 5. Nf3 {[%emt 0:00:28]} Bb4+ {[%emt 0:00:22]} 6. Nbd2 {[%emt 0:00:24]} Qe7 {[%emt 0:00:22]} 7. e3 {[%emt 0:00:22]} Ngxe5 {[%emt 0:00:24]} 8. Nxe5 {[%emt 0:00:24]} Nxe5 {[%emt 0:00:23]} 9. Be2 {[%emt 0:00:22]} d6 {[%emt 0:00:51]} 10. O-O {[%emt 0:00:41]} Bxd2 {[%emt 0:00:23]} 11. Qxd2 {[%emt 0:00:23]} O-O {[%emt 0:00:26]} 12. b4 {[%emt 0:00:37]} b6 {[%emt 0:00:49]} 13. Rac1 {[%emt 0:03:04]} Ng6 {[%emt 0:02:38]} 14. Bg3 {[%emt 0:00:25]} Bb7 {[%emt 0:00:22]} 15. Rfd1 {[%emt 0:04:33]} a5 {[%emt 0:02:13]} 16. c5 {[%emt 0:00:58]} dxc5 {[%emt 0:01:01]} 17. bxc5 {[%emt 0:00:22]} Rad8 {[%emt 0:01:14]} 18. Qb2 {[%emt 0:00:48]} Rxd1+ {[%emt 0:00:46]} 19. Bxd1 {[%emt 0:00:57]} Nh4 {[%emt 0:01:56]} 20. Bxh4 {[%emt 0:04:15]} Qxh4 {[%emt 0:00:22]} 21. cxb6 {[%emt 0:00:38]} Qg5 {[%emt 0:02:25]} 22. f4 {[%emt 0:00:21]} Qe7 {[%emt 0:00:22]} 23. Rxc7 {[%emt 0:03:32]} Qxe3+ {[%emt 0:00:33]} 24. Qf2 {[%emt 0:00:20]} Qe4 {[%emt 0:02:05]} 25. Bc2 {[%emt 0:01:03]} Qd5 {[%emt 0:00:51]} 26. Bb3 {[%emt 0:00:33]} Qe4 {[%emt 0:00:22]} 27. h3 {[%emt 0:00:29]} Bd5 {[%emt 0:05:23]} 28. Bxd5 {[%emt 0:00:24]} Qxd5 {[%emt 0:00:21]} 29. b7 {[%emt 0:01:35]} g6 {[%emt 0:00:59]} 30. Qc5 {[%emt 0:00:26]} Qd1+ {[%emt 0:00:27]} 31. Kh2 {[%emt 0:00:21]} 1-0

[Event "ARM-ch Rapid 2019"]
[Site "Yerevan"]
[Date "2019.01.22"]
[Round "3.4"]
[White "Vardanian, Haik V."]
[Black "Mkrtchyan, Sargis R."]
[Result "1-0"]
[WhiteElo "2234"]
[BlackElo "2199"]
[PlyCount "83"]
[EventDate "2019.01.22"]
[EventType "tourn"]
[EventCountry "ARM"]
[TimeControl "40/5400+30:1800+30"]
[WhiteClock "0:00:12"]
[BlackClock "0:00:48"]

1. e4 {[%emt 1:15:12]} c5 {[%emt 1:15:14]} 2. c3 {[%emt 0:00:37]} Nf6 {[%emt 0:00:26]} 3. e5 {[%emt 0:00:22]} Nd5 {[%emt 0:00:23]} 4. d4 {[%emt 0:00:22]} cxd4 {[%emt 0:01:01]} 5. Nf3 {[%emt 0:00:22]} e6 {[%emt 0:00:35]} 6. cxd4 {[%emt 0:00:23]} d6 {[%emt 0:01:03]} 7. Bc4 {[%emt 0:00:27]} Nc6 {[%emt 0:01:04]} 8. O-O {[%emt 0:00:23]} Be7 {[%emt 0:00:50]} 9. Qe2 {[%emt 0:00:25]} O-O {[%emt 0:00:37]} 10. Qe4 {[%emt 0:00:22]} Kh8 {[%emt 0:02:53]} 11. exd6 {[%emt 0:03:58]} Qxd6 {[%emt 0:01:10]} 12. a3 {[%emt 0:01:13]} f5 {[%emt 0:03:07]} 13. Qd3 {[%emt 0:00:54]} Bf6 {[%emt 0:00:52]} 14. Rd1 {[%emt 0:01:56]} Bd7 {[%emt 0:01:08]} 15. Nc3 {[%emt 0:00:34]} Nxc3 {[%emt 0:01:19]} 16. bxc3 {[%emt 0:00:32]} Na5 {[%emt 0:00:45]} 17. Bb5 {[%emt 0:01:29]} Rac8 {[%emt 0:00:45]} 18. Bf4 {[%emt 0:02:50]} Qd5 {[%emt 0:01:07]} 19. Bxd7 {[%emt 0:00:40]} Qxd7 {[%emt 0:00:23]} 20. Re1 {[%emt 0:02:39]} Rc6 {[%emt 0:01:28]} 21. Be5 {[%emt 0:00:43]} Rfc8 {[%emt 0:00:57]} 22. Rac1 {[%emt 0:01:17]} Nc4 {[%emt 0:02:14]} 23. Bxf6 {[%emt 0:00:24]} gxf6 {[%emt 0:00:21]} 24. Nd2 {[%emt 0:01:04]} Qd5 {[%emt 0:00:54]} 25. Nxc4 {[%emt 0:00:59]} Rxc4 {[%emt 0:00:22]} 26. Qe3 {[%emt 0:00:41]} Rg8 {[%emt 0:01:12]} 27. g3 {[%emt 0:00:22]} Rc6 {[%emt 0:01:04]} 28. Qh6 {[%emt 0:00:50]} Qd8 {[%emt 0:00:24]} 29. Re3 {[%emt 0:00:42]} Rg6 {[%emt 0:00:32]} 30. Qf4 {[%emt 0:00:23]} Rg4 {[%emt 0:00:26]} 31. Qf3 {[%emt 0:00:22]} Rxd4 {[%emt 0:00:24]} 32. Rxe6 {[%emt 0:01:09]} Rxe6 {[%emt 0:00:44]} 33. cxd4 {[%emt 0:00:23]} Rc6 {[%emt 0:00:33]} 34. Rd1 {[%emt 0:00:36]} Qd7 {[%emt 0:00:29]} 35. Qf4 {[%emt 0:00:47]} Kg7 {[%emt 0:00:27]} 36. h4 {[%emt 0:00:22]} Rc4 {[%emt 0:00:26]} 37. h5 {[%emt 0:00:28]} Qa4 {[%emt 0:00:30]} 38. Re1 {[%emt 0:00:41]} Rxd4 {[%emt 0:00:38]} 39. Re7+ {[%emt 0:00:35]} Kf8 {[%emt 0:00:23]} 40. Qc7 {[%emt 0:00:27]} Qd1+ {[%emt 0:00:32]} 41. Kg2 {[%emt 0:30:34]} Qxh5 {[%emt 0:30:36]} 42. Rxh7 {[%emt 0:00:43]} 1-0

[Event "ARM-ch Rapid 2019"]
[Site "Yerevan"]
[Date "2019.01.22"]
[Round "4.7"]
[White "Pashikian, Arman"]
[Black "Poghosyan, Suren"]
[Result "1-0"]
[WhiteElo "2599"]
[BlackElo "2303"]
[Annotator "RC"]
[PlyCount "155"]
[EventDate "2019.01.22"]
[EventType "tourn"]
[EventCountry "ARM"]
[TimeControl "40/5400+30:1800+30"]
[WhiteClock "0:00:29"]
[BlackClock "0:01:19"]

1. d4 {[%emt 1:15:11]} Nf6 {[%emt 1:15:12]} 2. Nf3 {[%emt 0:00:21]} g6 {[%emt 0:00:43]} 3. c4 {[%emt 0:00:22]} c5 {[%emt 0:00:22]} 4. Nc3 {[%emt 0:00:27]} cxd4 {[%emt 0:00:37]} 5. Nxd4 {[%emt 0:00:21]} Bg7 {[%emt 0:00:48]} 6. e4 {[%emt 0:00:23]} d6 {[%emt 0:00:21]} 7. Be2 {[%emt 0:00:22]} O-O {[%emt 0:00:24]} 8. O-O {[%emt 0:00:24]} Nc6 {[%emt 0:00:22]} 9. Nc2 {[%emt 0:00:21]} a5 {[%emt 0:00:41]} 10. Be3 {[%emt 0:00:37]} a4 {[%emt 0:00:27]} 11. Na3 {[%emt 0:00:41]} Qa5 {[%emt 0:02:40]} 12. Nab5 {[%emt 0:02:01]} Bd7 {[%emt 0:02:11]} 13. f3 {[%emt 0:06:08]} Rfc8 {[%emt 0:01:26]} 14. Rb1 {[%emt 0:00:42]} Ne5 {[%emt 0:03:03]} 15. b4 {[%emt 0:00:33]} axb3 {[%emt 0:02:16]} 16. axb3 {[%emt 0:00:22]} Nc6 {[%emt 0:01:27]} 17. Qe1 {[%emt 0:02:31]} Be6 {[%emt 0:01:02]} 18. Nd5 {[%emt 0:02:58]} Bxd5 {[%emt 0:01:02]} 19. Qxa5 {[%emt 0:00:55]} Rxa5 {[%emt 0:00:28]} 20. exd5 {[%emt 0:01:15]} Ne5 {[%emt 0:01:05]} 21. Rfc1 {[%emt 0:01:25]} h5 {[%emt 0:01:07]} 22. Bf1 {[%emt 0:01:04]} Kh7 {[%emt 0:01:12]} 23. Re1 {[%emt 0:00:22]} Ned7 {[%emt 0:01:44]} 24. Bf2 {[%emt 0:01:02]} Bf8 {[%emt 0:00:25]} 25. Red1 {[%emt 0:01:12]} Bg7 {[%emt 0:00:28]} 26. Re1 {[%emt 0:00:32]} Bf8 {[%emt 0:00:21]} 27. Red1 {[%emt 0:00:32]} Bg7 {[%emt 0:00:22]} 28. b4 {[%emt 0:00:26]} Ra2 {[%emt 0:00:30]} 29. Rbc1 {[%emt 0:00:33]} Rb2 {[%emt 0:01:02]} 30. c5 {[%emt 0:00:25]} Rxb4 {[%emt 0:00:30]} 31. cxd6 {[%emt 0:00:23]} Rxc1 {[%emt 0:00:22]} 32. Rxc1 {[%emt 0:00:22]} exd6 {[%emt 0:00:35]} 33. Nxd6 {[%emt 0:00:29]} Nxd5 {[%emt 0:01:02]} 34. Nxf7 {[%emt 0:00:22]} Bd4 {[%emt 0:00:24]} 35. Bxd4 {[%emt 0:00:45]} Rxd4 {[%emt 0:00:22]} 36. Nd6 {[%emt 0:00:50]} b6 {[%emt 0:00:32]} 37. Ne4 {[%emt 0:00:25]} N5f6 {[%emt 0:00:40]} 38. Nc3 {[%emt 0:00:30]} Nc5 {[%emt 0:00:25]} 39. Rb1 {[%emt 0:00:24]} Rd6 {[%emt 0:00:21]} 40. Kf2 {[%emt 0:00:38]} h4 {[%emt 0:00:21]} 41. Rb4 {[%emt 0:30:25]} g5 {[%emt 0:30:22]} 42. Be2 {[%emt 0:00:27]} Kg6 {[%emt 0:00:34]} 43. Rb2 {[%emt 0:00:24]} Nfd7 {[%emt 0:00:36]} 44. g3 {[%emt 0:00:42]} Ne5 {[%emt 0:00:23]} 45. Rb1 {[%emt 0:00:25]} hxg3+ {[%emt 0:00:40]} 46. hxg3 {[%emt 0:00:21]} Ned7 {[%emt 0:00:30]} 47. Ra1 {[%emt 0:00:33]} Rd2 {[%emt 0:00:33]} 48. Ke3 {[%emt 0:00:22]} Rc2 {[%emt 0:00:21]} 49. Nd5 {[%emt 0:00:27]} Rb2 {[%emt 0:00:44]} 50. Nc3 {[%emt 0:00:57]} Kf6 {[%emt 0:00:33]} 51. Rh1 {[%emt 0:00:29]} Rb3 {[%emt 0:00:31]} 52. Kd4 {[%emt 0:00:28]} Kg7 {[%emt 0:00:32]} 53. Rh5 {[%emt 0:00:36]} Rb4+ {[%emt 0:00:23]} 54. Ke3 {[%emt 0:00:27]} Rb3 {[%emt 0:00:26]} 55. Kd2 {[%emt 0:00:20]} Kg6 {[%emt 0:00:42]} 56. Rh8 {[%emt 0:00:34]} Nf6 {[%emt 0:00:33]} 57. Bd1 {[%emt 0:00:32]} Rb4 {[%emt 0:00:27]} 58. Bc2+ {[%emt 0:00:23]} Kf7 {[%emt 0:00:21]} 59. Rc8 {[%emt 0:00:30]} Rd4+ {[%emt 0:00:24]} 60. Ke3 {[%emt 0:00:35]} Rd6 {[%emt 0:00:40]} 61. Nb5 {[%emt 0:00:25]} Re6+ {[%emt 0:00:35]} 62. Kf2 {[%emt 0:00:22]} Re7 {[%emt 0:00:22]} 63. Rc6 {[%emt 0:00:31]} Re6 {[%emt 0:00:26]} 64. Rc7+ {[%emt 0:00:39]} Re7 {[%emt 0:00:21]} 65. Bg6+ {[%emt 0:00:24]} Kf8 {[%emt 0:00:31]} 66. Rc6 {[%emt 0:00:29]} Re6 {[%emt 0:00:43]} 67. Rc8+ {[%emt 0:00:21]} Kg7 {[%emt 0:00:26]} 68. Bf5 {[%emt 0:00:21]} Re5 {[%emt 0:00:24]} 69. Rc7+ {[%emt 0:00:28]} Kf8 {[%emt 0:00:28]} 70. Nd6 {[%emt 0:00:22]} Re7 {[%emt 0:00:47]} 71. Rc6 {[%emt 0:00:24]} Ncd7 {[%emt 0:00:34]} 72. g4 {[%emt 0:00:32]} Re5 {[%emt 0:00:28]} 73. Rc7 {[%emt 0:00:43]} Rd5 {[%emt 0:00:33]} 74. Ne4 {[%emt 0:00:23]} Rd4 {[%emt 0:00:32]} 75. Nxg5 {[%emt 0:00:24]} Ke7 {[%emt 0:00:21]} 76. Rc6 {[%emt 0:00:37]} b5 {[%emt 0:00:30]} 77. Re6+ {[%emt 0:00:22]} Kf8 {[%emt 0:00:23]} 78. Rxf6+ {[%emt 0:00:21]} 1-0

[Event "ARM-ch Rapid 2019"]
[Site "Yerevan"]
[Date "2019.01.22"]
[Round "4.9"]
[White "Yegiazarian, Arsen"]
[Black "Vardanyan, Haik A."]
[Result "1-0"]
[WhiteElo "2399"]
[BlackElo "1953"]
[PlyCount "45"]
[EventDate "2019.01.22"]
[EventType "tourn"]
[EventCountry "ARM"]
[TimeControl "40/5400+30:1800+30"]
[WhiteClock "0:05:56"]
[BlackClock "0:07:09"]

1. e4 {[%emt 1:15:13]} e6 {[%emt 1:15:14]} 2. d4 {[%emt 0:00:23]} d5 {[%emt 0:00:21]} 3. Nd2 {[%emt 0:00:23]} c5 {[%emt 0:00:27]} 4. exd5 {[%emt 0:00:24]} Qxd5 {[%emt 0:00:27]} 5. Ngf3 {[%emt 0:00:23]} Nf6 {[%emt 0:00:30]} 6. Bc4 {[%emt 0:00:42]} Qd8 {[%emt 0:00:28]} 7. O-O {[%emt 0:01:10]} cxd4 {[%emt 0:00:35]} 8. Nb3 {[%emt 0:00:22]} Be7 {[%emt 0:00:22]} 9. Nbxd4 {[%emt 0:00:32]} O-O {[%emt 0:00:22]} 10. Re1 {[%emt 0:00:34]} a6 {[%emt 0:00:46]} 11. Bg5 {[%emt 0:00:46]} b5 {[%emt 0:00:53]} 12. Bb3 {[%emt 0:00:24]} Bb7 {[%emt 0:01:40]} 13. Qe2 {[%emt 0:02:03]} Nc6 {[%emt 0:01:32]} 14. Rad1 {[%emt 0:00:49]} Qb6 {[%emt 0:01:57]} 15. Nxe6 {[%emt 0:02:45]} Rfe8 {[%emt 0:03:12]} 16. Be3 {[%emt 0:00:41]} Qa5 {[%emt 0:00:38]} 17. Neg5 {[%emt 0:01:12]} Nd8 {[%emt 0:01:08]} 18. Ne5 {[%emt 0:00:40]} Nd5 {[%emt 0:01:28]} 19. Rxd5 {[%emt 0:01:23]} Bxd5 {[%emt 0:00:24]} 20. Bxd5 {[%emt 0:00:21]} Bxg5 {[%emt 0:00:23]} 21. Bxg5 {[%emt 0:00:56]} Ra7 {[%emt 0:00:59]} 22. Bxd8 {[%emt 0:01:40]} Qxd8 {[%emt 0:01:18]} 23. Nxf7 {[%emt 0:00:35]} 1-0

[Event "ARM-ch Rapid 2019"]
[Site "Yerevan"]
[Date "2019.01.22"]
[Round "4.10"]
[White "Hayrapetyan, Arman Ash."]
[Black "Davtyan, Artur"]
[Result "1-0"]
[WhiteElo "2375"]
[BlackElo "2396"]
[PlyCount "127"]
[EventDate "2019.01.22"]
[EventType "tourn"]
[EventCountry "ARM"]
[TimeControl "40/5400+30:1800+30"]
[WhiteClock "0:01:24"]
[BlackClock "0:01:31"]

1. e4 {[%emt 1:15:12]} e5 {[%emt 1:15:11]} 2. Nf3 {[%emt 0:00:22]} Nc6 {[%emt 0:00:21]} 3. Bb5 {[%emt 0:00:21]} a6 {[%emt 0:00:21]} 4. Ba4 {[%emt 0:00:22]} Nf6 {[%emt 0:00:21]} 5. O-O {[%emt 0:00:21]} Nxe4 {[%emt 0:00:21]} 6. d4 {[%emt 0:02:20]} b5 {[%emt 0:00:22]} 7. Bb3 {[%emt 0:00:20]} d5 {[%emt 0:00:20]} 8. dxe5 {[%emt 0:00:22]} Be6 {[%emt 0:00:21]} 9. c3 {[%emt 0:00:21]} Bc5 {[%emt 0:00:39]} 10. Nbd2 {[%emt 0:00:27]} O-O {[%emt 0:00:22]} 11. Bc2 {[%emt 0:00:26]} Nxf2 {[%emt 0:00:30]} 12. Rxf2 {[%emt 0:00:22]} f6 {[%emt 0:00:16]} 13. exf6 {[%emt 0:00:23]} Bxf2+ {[%emt 0:00:24]} 14. Kxf2 {[%emt 0:00:21]} Qxf6 {[%emt 0:00:22]} 15. Kg1 {[%emt 0:01:17]} Rae8 {[%emt 0:00:47]} 16. Nf1 {[%emt 0:02:54]} Ne5 {[%emt 0:00:31]} 17. Be3 {[%emt 0:01:02]} Nxf3+ {[%emt 0:01:13]} 18. Qxf3 {[%emt 0:01:16]} Qxf3 {[%emt 0:00:24]} 19. gxf3 {[%emt 0:00:21]} Rxf3 {[%emt 0:00:26]} 20. Bf2 {[%emt 0:02:23]} Bh3 {[%emt 0:01:20]} 21. Ng3 {[%emt 0:00:35]} g6 {[%emt 0:02:16]} 22. Re1 {[%emt 0:01:19]} Ref8 {[%emt 0:00:50]} 23. Bc5 {[%emt 0:00:28]} Rd8 {[%emt 0:01:55]} 24. Nh1 {[%emt 0:01:19]} Bf5 {[%emt 0:00:56]} 25. Kg2 {[%emt 0:01:06]} Rf4 {[%emt 0:00:27]} 26. Bxf5 {[%emt 0:01:04]} Rxf5 {[%emt 0:00:21]} 27. Nf2 {[%emt 0:00:54]} Rg5+ {[%emt 0:00:43]} 28. Kf1 {[%emt 0:00:43]} Rd7 {[%emt 0:00:24]} 29. b4 {[%emt 0:00:42]} Rh5 {[%emt 0:00:39]} 30. Ng4 {[%emt 0:01:22]} Rf7+ {[%emt 0:03:24]} 31. Kg2 {[%emt 0:01:02]} Rff5 {[%emt 0:00:41]} 32. Kg3 {[%emt 0:01:04]} Kg7 {[%emt 0:01:21]} 33. Re6 {[%emt 0:01:26]} Rf1 {[%emt 0:01:13]} 34. Rc6 {[%emt 0:00:39]} Rf7 {[%emt 0:00:41]} 35. Re6 {[%emt 0:01:17]} Rf1 {[%emt 0:01:21]} 36. Rxa6 {[%emt 0:01:08]} Rhf5 {[%emt 0:00:41]} 37. Rc6 {[%emt 0:00:46]} R5f3+ {[%emt 0:02:01]} 38. Kg2 {[%emt 0:00:21]} Rf7 {[%emt 0:00:21]} 39. Bd4+ {[%emt 0:00:23]} Kf8 {[%emt 0:00:22]} 40. Nf6 {[%emt 0:00:21]} Rf5 {[%emt 0:00:28]} 41. Re6 {[%emt 0:30:24]} Rg7 {[%emt 0:32:11]} 42. h4 {[%emt 0:00:44]} h5 {[%emt 0:00:35]} 43. Rc6 {[%emt 0:00:40]} Rf7 {[%emt 0:00:27]} 44. Kg3 {[%emt 0:00:24]} Rg7 {[%emt 0:01:32]} 45. Nxh5 {[%emt 0:00:46]} Rxh5 {[%emt 0:01:20]} 46. Bxg7+ {[%emt 0:00:24]} Kxg7 {[%emt 0:00:21]} 47. Rxc7+ {[%emt 0:00:30]} Kh6 {[%emt 0:00:30]} 48. Rc5 {[%emt 0:00:16]} Re5 {[%emt 0:00:11]} 49. Kf3 {[%emt 0:00:43]} Rf5+ {[%emt 0:01:02]} 50. Kg4 {[%emt 0:00:33]} Re5 {[%emt 0:00:27]} 51. Rxb5 {[%emt 0:00:25]} Re4+ {[%emt 0:00:36]} 52. Kf3 {[%emt 0:00:21]} Rxh4 {[%emt 0:00:21]} 53. Rxd5 {[%emt 0:00:35]} Rh3+ {[%emt 0:00:21]} 54. Ke4 {[%emt 0:00:40]} Rxc3 {[%emt 0:00:30]} 55. a4 {[%emt 0:00:30]} Ra3 {[%emt 0:00:45]} 56. a5 {[%emt 0:00:15]} Ra4 {[%emt 0:00:21]} 57. Rd4 {[%emt 0:00:21]} Kh5 {[%emt 0:00:22]} 58. Kd5 {[%emt 0:00:22]} g5 {[%emt 0:00:22]} 59. Kc5 {[%emt 0:00:21]} g4 {[%emt 0:00:21]} 60. Rd1 {[%emt 0:00:26]} g3 {[%emt 0:00:26]} 61. Kb5 {[%emt 0:00:23]} Ra2 {[%emt 0:00:21]} 62. Ka6 {[%emt 0:00:30]} g2 {[%emt 0:00:25]} 63. b5 {[%emt 0:00:22]} Rf2 {[%emt 0:00:22]} 64. Rg1 {[%emt 0:00:22]} 1-0